bitfinex-derivatives/quotes_BTCF0:USTF0_20250716
["timestamp","ask_amount","ask_price","bid_price","bid_amount"]
[1752630421877,0.15251692,117790.0,117780.0,0.52121749]
[1752630423473,0.15251692,117790.0,117780.0,0.50188199]
[1752630424378,0.15751692,117790.0,117780.0,0.50188199]
[1752630425283,0.32954802,117790.0,117780.0,0.26605347]
[1752630425486,0.32954802,117790.0,117780.0,1.11029749]
[1752630425684,0.32954802,117790.0,117780.0,1.11021749]
[1752630426985,0.15977692,117790.0,117780.0,1.11021749]
[1752630430983,0.15977692,117790.0,117780.0,1.10997749]
[1752630431285,0.15977692,117790.0,117780.0,1.10989749]
[1752630431488,0.15977692,117790.0,117780.0,1.09056191]
[1752630431988,0.15977692,117790.0,117780.0,0.50188191]
[1752630432181,0.15977692,117790.0,117780.0,1.09040191]
[1752630433081,0.00826,117790.0,117780.0,1.09040191]
[1752630433382,0.50586287,117790.0,117770.0,0.64618897]
[1752630433682,0.1720607,117770.0,117750.0,1.23486897]
[1752630433876,0.49989967,117770.0,117750.0,1.23486897]
[1752630434080,0.2195107,117770.0,117760.0,0.21649294]
[1752630434282,0.37112981,117770.0,117760.0,0.21649294]
[1752630434483,0.32867981,117770.0,117760.0,0.21649294]
[1752630434985,0.32867981,117770.0,117760.0,0.50188191]
[1752630435889,0.33867981,117770.0,117760.0,0.50188191]
[1752630436387,0.34067981,117770.0,117760.0,0.50188191]
[1752630436890,0.34067901,117770.0,117760.0,1.09088191]
[1752630437077,0.70147901,117770.0,117760.0,1.09088191]
[1752630437483,0.5498599,117770.0,117760.0,1.09088191]
[1752630438087,0.1890599,117770.0,117760.0,1.09088191]
[1752630440294,0.1890599,117770.0,117760.0,0.80549294]
[1752630440485,0.1890599,117770.0,117760.0,1.09088191]
[1752630440691,0.29513576,117770.0,117760.0,1.09088191]
[1752630440890,0.31222684,117770.0,117760.0,0.80549294]
[1752630441091,0.31222684,117770.0,117760.0,1.09088191]
[1752630445395,0.20615098,117770.0,117760.0,1.09088191]
[1752630445596,0.35777009,117770.0,117760.0,1.09088191]
[1752630446092,0.35776999,117770.0,117760.0,1.09088191]
[1752630446288,0.18797019,117770.0,117760.0,1.09088191]
[1752630446493,0.20615088,117770.0,117760.0,1.09088191]
[1752630447196,0.03635108,117770.0,117760.0,1.09088191]
[1752630447798,0.18776212,117770.0,117760.0,1.09088191]
[1752630447997,0.35756202,117770.0,117760.0,1.09088191]
[1752630448994,0.18776212,117770.0,117760.0,1.09088191]
[1752630450497,0.35756192,117770.0,117760.0,1.09088191]
[1752630452602,0.20615088,117770.0,117760.0,1.09088191]
[1752630458304,0.35760571,117770.0,117760.0,1.09088191]
[1752630460011,0.35760571,117770.0,117760.0,0.80549294]
[1752630460208,0.35760571,117770.0,117760.0,1.09088191]
[1752630461713,0.35754184,117770.0,117760.0,1.09088191]
[1752630462811,0.1722842,117760.0,117750.0,0.3608]
[1752630463011,0.00741,117760.0,117750.0,1.45228191]
[1752630463212,0.1772242,117760.0,117750.0,1.45228191]
[1752630463513,0.32861516,117760.0,117750.0,1.45228191]
[1752630463813,0.15880096,117760.0,117750.0,1.45228191]
[1752630464014,0.16880096,117760.0,117750.0,1.45228191]
[1752630464713,0.16880096,117760.0,117750.0,1.16689294]
[1752630464913,0.16880096,117760.0,117750.0,1.45228191]
[1752630465716,0.01741,117760.0,117750.0,1.45228191]
[1752630465917,0.12335462,117760.0,117750.0,1.45228191]
[1752630466605,0.01741,117760.0,117750.0,1.43294217]
[1752630470516,0.01741,117760.0,117750.0,0.84334217]
[1752630470713,0.1822847,117760.0,117750.0,0.57729294]
[1752630471020,0.1872243,117760.0,117750.0,1.16645294]
[1752630471521,0.01741,117760.0,117750.0,1.16645294]
[1752630471915,0.01741,117760.0,117750.0,1.45184191]
[1752630474623,0.01741,117760.0,117750.0,0.86268191]
[1752630474825,0.01741,117760.0,117750.0,1.45160191]
[1752630476225,0.1872243,117760.0,117750.0,0.86268191]
[1752630476425,0.01741,117760.0,117750.0,1.45140191]
[1752630483532,0.16880096,117760.0,117750.0,1.45140191]
[1752630486538,0.27478312,117760.0,117750.0,1.45140191]
[1752630486834,0.12339216,117760.0,117750.0,1.45140191]
[1752630487037,0.12339216,117760.0,117750.0,1.38041291]
[1752630488032,0.01741,117760.0,117750.0,1.38041291]
[1752630488738,0.01741,117760.0,117750.0,1.16601294]
[1752630488938,0.01741,117760.0,117750.0,1.38041291]
[1752630489239,0.23180997,117760.0,117750.0,1.38041291]
[1752630489737,0.01741,117760.0,117750.0,1.38041291]
[1752630490638,0.01741,117760.0,117750.0,1.16601294]
[1752630490941,0.23180997,117760.0,117750.0,1.38041291]
[1752630491441,0.01741,117760.0,117750.0,1.38041291]
[1752630491638,0.23180997,117760.0,117750.0,1.38041291]
[1752630491943,0.01741,117760.0,117750.0,1.38041291]
[1752630492641,0.23180997,117760.0,117750.0,1.38041291]
[1752630495139,0.23180997,117760.0,117750.0,1.36107311]
[1752630495940,0.59260997,117760.0,117750.0,1.01961291]
[1752630496141,0.37821,117760.0,117750.0,1.01961291]
[1752630497843,0.37821,117760.0,117750.0,0.43089291]
[1752630498044,0.80700994,117760.0,117750.0,0.80505294]
[1752630498245,0.59260997,117760.0,117750.0,1.01945291]
[1752630501946,0.59260997,117760.0,117750.0,0.78992558]
[1752630503047,0.7896448,117760.0,117750.0,0.78992558]
[1752630503244,0.7896448,117760.0,117750.0,0.77058578]
[1752630503650,0.57524483,117760.0,117750.0,0.77058578]
[1752630505550,0.57524483,117760.0,117750.0,0.98498575]
[1752630506549,0.37821,117760.0,117750.0,0.98498575]
[1752630507248,0.37821,117760.0,117750.0,0.77058578]
[1752630508052,0.37821,117760.0,117750.0,0.55618581]
[1752630508249,0.37821,117760.0,117750.0,0.77058578]
[1752630508551,0.548024,117760.0,117750.0,0.77058578]
[1752630508751,0.76242397,117760.0,117750.0,0.77058578]
[1752630509348,0.91396922,117760.0,117750.0,0.55409284]
[1752630510754,0.76242397,117760.0,117750.0,0.55409284]
[1752630511652,0.59260997,117760.0,117750.0,0.21439997]
[1752630511844,0.97682384,117760.0,117750.0,0.21439997]
[1752630512253,0.76242387,117760.0,117750.0,0.21439997]
[1752630512457,0.91396912,117760.0,117750.0,0.21439997]
[1752630512650,0.77953795,117760.0,117740.0,0.82153668]
[1752630512849,0.95610332,117760.0,117750.0,0.21439997]
[1752630513756,1.54466332,117760.0,117750.0,0.21439997]
[1752630514756,1.54004332,117760.0,117740.0,0.82153668]
[1752630514951,1.49916361,117760.0,117750.0,0.21439997]
[1752630515156,0.1698283,117750.0,117740.0,0.21439997]
[1752630515358,0.83697477,117750.0,117740.0,1.01945291]
[1752630515659,1.00545921,117750.0,117740.0,1.01945291]
[1752630515855,1.00545921,117750.0,117740.0,0.43089291]
[1752630516257,0.96300031,117750.0,117740.0,0.43089291]
[1752630516457,1.03006757,117750.0,117740.0,0.43089291]
[1752630516853,1.03906757,117750.0,117740.0,0.43089291]
[1752630517256,1.03906757,117750.0,117740.0,0.21649294]
[1752630517463,1.03906757,117750.0,117740.0,0.43089291]
[1752630517647,0.8246676,117750.0,117740.0,0.43089291]
[1752630517957,1.03606757,117750.0,117740.0,0.43089291]
[1752630518658,1.07852647,117750.0,117740.0,0.21439997]
[1752630519656,0.92698122,117750.0,117740.0,0.21439997]
[1752630519857,0.88452232,117750.0,117740.0,0.21439997]
[1752630520058,0.84206472,117750.0,117740.0,0.21439997]
[1752630520557,0.62766475,117750.0,117740.0,0.23330498]
[1752630520756,0.84206472,117750.0,117740.0,0.23330498]
[1752630521163,0.84206472,117750.0,117740.0,0.01890501]
[1752630521460,0.84206472,117750.0,117740.0,0.23330498]
[1752630522157,0.84206472,117750.0,117740.0,0.44979792]
[1752630523258,0.84206472,117750.0,117740.0,0.23539795]
[1752630523459,0.84206472,117750.0,117740.0,0.44979792]
[1752630525558,0.94805459,117750.0,117740.0,0.44979792]
[1752630526254,0.77822629,117750.0,117740.0,0.44979792]
[1752630526460,0.77822629,117750.0,117740.0,0.64485593]
[1752630526656,0.45783645,117750.0,117740.0,0.64485593]
[1752630526855,0.6093817,117750.0,117740.0,0.64485593]
[1752630528565,0.77921,117750.0,117740.0,0.64485593]
[1752630529358,0.62766475,117750.0,117740.0,0.64485593]
[1752630529761,0.45783645,117750.0,117740.0,0.64485593]
[1752630530259,0.62766475,117750.0,117740.0,0.64485593]
[1752630530466,0.45783645,117750.0,117740.0,0.64485593]
[1752630530965,0.62766475,117750.0,117740.0,0.64485593]
[1752630531561,0.45783645,117750.0,117740.0,0.64485593]
[1752630532965,0.67223642,117750.0,117740.0,0.64485593]
[1752630534468,0.84206472,117750.0,117740.0,0.64485593]
[1752630535266,0.67223642,117750.0,117740.0,0.64485593]
[1752630535766,0.67223642,117750.0,117740.0,0.62551397]
[1752630536666,0.84206472,117750.0,117740.0,0.62551397]
[1752630537165,0.84206472,117750.0,117740.0,0.40902103]
[1752630537365,0.84206472,117750.0,117740.0,0.62551397]
[1752630537869,0.67223642,117750.0,117740.0,0.62551397]
[1752630538572,0.67223642,117750.0,117740.0,0.21649294]
[1752630538869,0.67223642,117750.0,117740.0,0.64529288]
[1752630539371,0.45783645,117750.0,117740.0,0.64529288]
[1752630539669,0.67223642,117750.0,117740.0,0.64529288]
[1752630540171,0.62766475,117750.0,117740.0,0.64529288]
[1752630540372,0.84206472,117750.0,117740.0,0.64529288]
[1752630540568,0.84206472,117750.0,117740.0,0.21649294]
[1752630540769,0.99347925,117750.0,117740.0,0.43089291]
[1752630542766,0.77907928,117750.0,117740.0,0.45015457]
[1752630542972,0.99347925,117750.0,117740.0,0.45015457]
[1752630543168,0.62766475,117750.0,117740.0,0.45015457]
[1752630543373,0.62766465,117750.0,117740.0,0.2357546]
[1752630543570,0.84206462,117750.0,117740.0,0.66455454]
[1752630544574,0.84206462,117750.0,117740.0,0.45015457]
[1752630545878,0.84206462,117750.0,117740.0,0.66455454]
[1752630546076,0.94808346,117750.0,117740.0,0.66455454]
[1752630547279,0.84206462,117750.0,117740.0,0.66455454]
[1752630547594,0.84206462,117750.0,117740.0,0.45015457]
[1752630548179,0.99347915,117750.0,117740.0,0.45015457]
[1752630551496,0.99347915,117750.0,117740.0,0.2357546]
[1752630551687,0.99347915,117750.0,117740.0,0.45015457]
[1752630552088,0.99347915,117750.0,117740.0,0.28946292]
[1752630552287,0.77907918,117750.0,117740.0,0.28946292]
[1752630552489,0.99347915,117750.0,117740.0,0.28946292]
[1752630552690,0.99347915,117750.0,117740.0,0.50386289]
[1752630552890,0.99347915,117750.0,117740.0,0.28946292]
[1752630553397,0.99347915,117750.0,117740.0,0.27020126]
[1752630553897,0.77907918,117750.0,117740.0,0.27020126]
[1752630554094,0.99347915,117750.0,117740.0,0.48460123]
[1752630554294,0.77907918,117750.0,117740.0,0.48460123]
[1752630554494,0.62766465,117750.0,117740.0,0.25156171]
[1752630554696,0.62766465,117750.0,117740.0,0.46596168]
[1752630554999,0.84206462,117750.0,117740.0,0.46596168]
[1752630555197,0.82469948,117750.0,117740.0,0.46596168]
[1752630556298,0.97623712,117750.0,117740.0,0.46596168]
[1752630556499,0.77920229,117750.0,117740.0,0.46596168]
[1752630556895,0.62766465,117750.0,117740.0,0.46596168]
[1752630557295,0.84206462,117750.0,117740.0,0.46596168]
[1752630557501,0.99362114,117750.0,117740.0,0.46596168]
[1752630558302,0.84206462,117750.0,117740.0,0.46596168]
[1752630558702,0.84206462,117750.0,117740.0,0.03716174]
[1752630558901,0.84206462,117750.0,117740.0,0.46596168]
[1752630560297,0.99362515,117750.0,117740.0,0.46596168]
[1752630562006,0.84206462,117750.0,117740.0,0.46596168]
[1752630562503,0.84206462,117750.0,117740.0,0.4466194]
[1752630564409,0.99362938,117750.0,117740.0,0.4466194]
[1752630566207,0.99362938,117750.0,117740.0,0.25156171]
[1752630569005,1.36774941,117750.0,117740.0,0.46596168]
[1752630569405,1.19792121,117750.0,117740.0,0.46596168]
[1752630570506,1.19792121,117750.0,117740.0,0.25156171]
[1752630570703,1.19792121,117750.0,117740.0,0.46596168]
[1752630570903,0.60940121,117750.0,117740.0,0.46596168]
[1752630572410,0.77922941,117750.0,117740.0,0.46596168]
[1752630573306,0.60940121,117750.0,117740.0,0.46596168]
[1752630574713,0.77922941,117750.0,117740.0,0.46596168]
[1752630577110,0.59005202,117750.0,117740.0,0.46596168]
[1752630577316,0.43848726,117750.0,117740.0,0.46596168]
[1752630578213,0.61077546,117750.0,117740.0,0.46596168]
[1752630578716,0.44094726,117750.0,117740.0,0.46596168]
[1752630587026,0.08014726,117750.0,117740.0,0.46596168]
[1752630587424,0.08014726,117750.0,117740.0,0.82676168]
[1752630587627,0.23171202,117750.0,117740.0,0.82676168]
[1752630587923,0.22925202,117750.0,117740.0,0.99660418]
[1752630588127,0.22925202,117750.0,117740.0,1.21100415]
[1752630588319,0.21263202,117750.0,117740.0,2.27406006]
[1752630588628,0.21263202,117750.0,117740.0,1.63086015]
[1752630588629,0.06106726,117750.0,117740.0,1.63086015]
[1752630589230,0.21263202,117750.0,117740.0,1.38086015]
[1752630591732,0.06106726,117750.0,117740.0,1.38086015]
[1752630592633,0.21263202,117750.0,117740.0,1.38086015]
[1752630593533,0.22156557,117770.0,117760.0,0.1698137]
[1752630593727,0.02207074,117770.0,117760.0,1.79937535]
[1752630593934,0.0047,117780.0,117770.0,0.1697993]
[1752630594126,0.0047,117780.0,117770.0,0.99656098]
[1752630595432,0.0047,117780.0,117770.0,0.56776104]
[1752630595735,0.0057,117780.0,117770.0,0.99856098]
[1752630596035,0.0057,117780.0,117770.0,0.97922551]
[1752630596240,0.0077,117780.0,117770.0,0.97822551]
[1752630600744,0.0077,117780.0,117770.0,0.82776168]
[1752630600941,0.01009,117780.0,117770.0,1.58584108]
[1752630601444,0.01009,117780.0,117770.0,1.41604168]
[1752630601748,0.01009,117780.0,117770.0,1.58584108]
[1752630605240,0.01009,117780.0,117770.0,1.41604168]
[1752630606645,0.01009,117780.0,117770.0,1.05524168]
[1752630608444,0.01009,117780.0,117770.0,0.62644174]
[1752630608647,0.01009,117780.0,117770.0,1.05524168]
[1752630609548,0.01009,117780.0,117770.0,1.22504108]
[1752630610145,0.01009,117780.0,117770.0,1.05524168]
[1752630616356,0.0077,117780.0,117770.0,1.22504098]
[1752630616753,0.0077,117780.0,117770.0,1.43944095]
[1752630616952,0.0077,117780.0,117770.0,1.05524168]
[1752630617148,0.58528997,117780.0,117770.0,0.21539997]
[1752630617348,0.37089,117780.0,117770.0,0.78422407]
[1752630617549,0.01009,117780.0,117770.0,0.99862404]
[1752630618256,0.0077,117780.0,117770.0,1.03578578]
[1752630619556,0.01009,117780.0,117770.0,1.03578578]
[1752630620950,0.0077,117780.0,117770.0,1.20558508]
[1752630621354,0.0077,117780.0,117770.0,0.62532174]
[1752630621554,0.0077,117780.0,117770.0,1.05412168]
[1752630624758,0.0077,117780.0,117770.0,1.22392098]
[1752630625460,0.0077,117780.0,117770.0,1.20458592]
[1752630626152,0.003,117780.0,117770.0,1.20458592]
[1752630628760,0.15415082,117780.0,117770.0,1.20458592]
[1752630630359,0.15869082,117780.0,117770.0,1.20458592]
[1752630633563,0.15869082,117780.0,117770.0,1.18525085]
[1752630633961,0.15415082,117780.0,117770.0,1.18525085]
[1752630634163,0.15415082,117780.0,117770.0,1.39965082]
[1752630634466,0.003,117780.0,117770.0,1.39965082]
[1752630634867,0.003,117780.0,117770.0,1.18525085]
[1752630635261,0.003,117780.0,117770.0,1.39965082]
[1752630635469,0.16826226,117790.0,117780.0,0.1697849]
[1752630635771,0.16826226,117790.0,117780.0,1.44442144]
[1752630635964,0.01711144,117790.0,117780.0,1.87322138]
[1752630636459,0.01711144,117790.0,117780.0,1.23002147]
[1752630636869,0.01811144,117790.0,117780.0,1.23402147]
[1752630637071,0.01811144,117790.0,117780.0,1.16195048]
[1752630637369,0.01811144,117790.0,117780.0,0.87638602]
[1752630638471,0.02265144,117790.0,117780.0,1.17890156]
[1752630638769,0.02965144,117790.0,117780.0,1.46146602]
[1752630638968,0.02511144,117790.0,117780.0,1.46146602]
[1752630639771,0.01811144,117790.0,117780.0,1.46246602]
[1752630640868,0.01811144,117790.0,117780.0,1.10166602]
[1752630641069,0.01811144,117790.0,117780.0,1.46246602]
[1752630641471,0.01811144,117790.0,117780.0,1.44313337]
[1752630641771,0.01811144,117790.0,117780.0,1.46188571]
[1752630642966,0.01811144,117790.0,117780.0,1.74745017]
[1752630644075,0.01811144,117790.0,117780.0,1.46188571]
[1752630646674,0.12407927,117790.0,117780.0,1.46188571]
[1752630647077,0.01811144,117790.0,117780.0,1.46188571]
[1752630649178,0.01811144,117790.0,117780.0,1.74745017]
[1752630651280,0.01811144,117790.0,117780.0,1.46188571]
[1752630651678,0.01811144,117790.0,117780.0,1.74745017]
[1752630652488,0.01811144,117790.0,117780.0,1.46188571]
[1752630652778,0.01811144,117790.0,117780.0,1.82268571]
[1752630656779,0.01811144,117790.0,117780.0,1.82252571]
[1752630657081,0.02265144,117790.0,117780.0,1.82252571]
[1752630658074,0.02265144,117790.0,117780.0,1.46172571]
[1752630659585,0.02265144,117790.0,117780.0,0.87380571]
[1752630659885,0.00787,117790.0,117780.0,0.34322081]
[1752630660083,0.00787,117790.0,117780.0,0.8941968]
[1752630660280,0.11383783,117790.0,117780.0,0.8941968]
[1752630660585,0.11383783,117790.0,117780.0,1.2549968]
[1752630660989,0.11383783,117790.0,117780.0,1.4247817]
[1752630661581,0.11383783,117790.0,117780.0,0.8369017]
[1752630661582,0.00787,117790.0,117780.0,0.8369017]
[1752630661781,0.00787,117790.0,117780.0,0.6671168]
[1752630661980,0.00787,117790.0,117780.0,0.3063168]
[1752630662182,0.5384405,117790.0,117780.0,0.60863234]
[1752630662382,0.5384405,117790.0,117780.0,0.58929854]
[1752630663190,0.64444084,117790.0,117780.0,0.58788]
[1752630663591,0.00499,117780.0,117770.0,1.19024523]
[1752630663790,0.36812,117780.0,117770.0,1.19024523]
[1752630664091,0.36812,117780.0,117770.0,0.89254523]
[1752630664887,0.37612,117780.0,117770.0,0.89354523]
[1752630666894,0.5459049,117780.0,117770.0,0.60798077]
[1752630667087,0.69729572,117780.0,117770.0,0.89354523]
[1752630667390,0.52751082,117780.0,117770.0,0.89354523]
[1752630667593,0.69729572,117780.0,117770.0,0.89354523]
[1752630668090,0.69729572,117780.0,117770.0,0.60798077]
[1752630668491,0.69729572,117780.0,117770.0,0.89354523]
[1752630668693,0.5459049,117780.0,117770.0,0.89354523]
[1752630669592,0.69729572,117780.0,117770.0,0.89354523]
[1752630670295,0.69729572,117780.0,117770.0,0.87420809]
[1752630672094,0.52751082,117780.0,117770.0,0.87420809]
[1752630672691,0.37612,117780.0,117770.0,0.87420809]
[1752630675997,0.5459049,117780.0,117770.0,0.87420809]
[1752630677398,0.37612,117780.0,117770.0,0.87420809]
[1752630680996,0.37379,117780.0,117770.0,1.06157482]
[1752630683301,0.57082483,117780.0,117770.0,1.06157482]
[1752630685302,0.57082483,117780.0,117770.0,0.89177552]
[1752630686096,0.72215098,117780.0,117770.0,0.89177552]
[1752630686399,0.72215098,117780.0,117770.0,1.06157472]
[1752630686901,0.52511615,117780.0,117770.0,1.06157472]
[1752630688999,0.52511615,117780.0,117770.0,1.04223853]
[1752630690195,0.37379,117780.0,117770.0,1.04223853]
[1752630690396,0.3688,117780.0,117770.0,1.04223853]
[1752630690706,0.008,117780.0,117770.0,1.40303853]
[1752630690901,0.11405314,117780.0,117770.0,1.40303853]
[1752630693099,0.11872314,117780.0,117770.0,1.40303853]
[1752630693497,0.11405314,117780.0,117770.0,1.40303853]
[1752630693700,0.51679615,117800.0,117790.0,0.1697704]
[1752630693899,0.51679615,117800.0,117790.0,1.09895231]
[1752630694300,0.36776,117800.0,117790.0,1.09895231]
[1752630694605,0.51923779,117800.0,117790.0,1.38451677]
[1752630695202,0.52023779,117800.0,117790.0,1.38851677]
[1752630696005,0.36876,117800.0,117790.0,1.38851677]
[1752630696307,0.36876,117800.0,117790.0,1.10295231]
[1752630697105,0.36647,117800.0,117790.0,1.38851677]
[1752630697605,0.36647,117800.0,117790.0,1.10295231]
[1752630698212,0.00567,117800.0,117790.0,1.10295231]
[1752630698896,0.00796,117800.0,117790.0,1.10295231]
[1752630701605,0.1138328,117800.0,117790.0,1.10295231]
[1752630702510,0.00796,117800.0,117790.0,1.10295231]
[1752630703807,0.00796,117800.0,117790.0,1.46375231]
[1752630703808,0.1115428,117800.0,117790.0,1.46375231]
[1752630704706,0.1068728,117800.0,117790.0,1.74931677]
[1752630705315,0.001,117800.0,117790.0,1.74931677]
[1752630706510,0.1068728,117800.0,117790.0,1.74931677]
[1752630706909,0.1115428,117800.0,117790.0,1.46375231]
[1752630709607,0.00567,117800.0,117790.0,1.46375231]
[1752630710816,0.1115428,117800.0,117790.0,1.46375231]
[1752630712524,0.00567,117800.0,117790.0,1.46375231]
[1752630716412,0.00796,117800.0,117790.0,0.93302191]
[1752630716619,0.00796,117800.0,117790.0,0.34534191]
[1752630716814,0.00796,117800.0,117790.0,0.93302191]
[1752630717122,0.00796,117800.0,117790.0,1.10279241]
[1752630717324,0.00796,117800.0,117790.0,0.93302191]
[1752630718110,0.00796,117800.0,117790.0,1.10279241]
[1752630722422,0.00796,117800.0,117790.0,0.93302191]
[1752630724220,0.15943779,117800.0,117790.0,0.93302191]
[1752630725115,0.15943779,117800.0,117790.0,0.91414847]
[1752630725317,0.15943779,117800.0,117790.0,0.93237671]
[1752630726625,0.00796,117800.0,117790.0,0.93237671]
[1752630726925,0.20499483,117800.0,117790.0,0.93237671]
[1752630727920,0.37475093,117800.0,117790.0,0.8954727]
[1752630728117,0.73555093,117800.0,117790.0,0.02222824]
[1752630728422,0.88728581,117800.0,117790.0,0.60990824]
[1752630729219,0.73555093,117800.0,117790.0,0.60990824]
[1752630729415,1.02111539,117800.0,117790.0,0.02222824]
[1752630729622,1.02111539,117800.0,117780.0,0.60803786]
[1752630729623,0.1721905,117790.0,117780.0,0.60803786]
[1752630729919,0.5378405,117790.0,117780.0,1.21472795]
[1752630730220,0.5378405,117790.0,117780.0,0.92916349]
[1752630730420,0.75214623,117790.0,117780.0,0.60669009]
[1752630730920,0.75314623,117790.0,117780.0,0.60869009]
[1752630732824,0.5561114,117790.0,117780.0,0.60869009]
[1752630733529,0.5561114,117790.0,117780.0,0.89425455]
[1752630734230,0.5561114,117790.0,117780.0,0.60869009]
[1752630735129,0.5561114,117790.0,117780.0,0.58935356]
[1752630737325,0.5561114,117790.0,117780.0,0.00167356]
[1752630737633,0.5561114,117790.0,117780.0,0.58939356]
[1752630737825,0.70747627,117790.0,117780.0,0.00167356]
[1752630738027,0.70747627,117790.0,117780.0,0.58935356]
[1752630738028,0.99304073,117790.0,117780.0,0.58935356]
[1752630738228,0.99304073,117790.0,117780.0,0.00167356]
[1752630739535,1.01147586,117790.0,117780.0,0.00167356]
[1752630739733,0.00242,117770.0,117750.0,0.30487118]
[1752630739933,0.00727,117760.0,117750.0,0.05601073]
[1752630740127,0.1770837,117760.0,117750.0,0.05601073]
[1752630740335,0.1770837,117760.0,117750.0,0.92929519]
[1752630740939,0.1770837,117760.0,117750.0,0.93029519]
[1752630741439,0.1780837,117760.0,117750.0,0.93029519]
[1752630742236,0.64478919,117760.0,117750.0,0.93029519]
[1752630745034,0.64478919,117760.0,117750.0,0.89339118]
[1752630745239,0.64478919,117760.0,117750.0,0.93029519]
[1752630746239,0.5388837,117760.0,117750.0,0.93029519]
[1752630746636,0.64478919,117760.0,117750.0,0.93029519]
[1752630747440,0.64478919,117760.0,117750.0,0.64477073]
[1752630747641,0.93035365,117760.0,117750.0,0.60786672]
[1752630747842,0.5388837,117760.0,117750.0,0.60786672]
[1752630748346,0.64478919,117760.0,117750.0,0.60786672]
[1752630753944,0.64478919,117760.0,117750.0,0.02010672]
[1752630754146,1.00558919,117760.0,117750.0,0.02010672]
[1752630754653,1.00558919,117760.0,117750.0,0.001]
[1752630754841,1.29115365,117760.0,117750.0,0.001]
[1752630755551,1.29115365,117760.0,117730.0,0.58776]
[1752630755552,0.1698425,117740.0,117730.0,0.87332446]
[1752630755849,0.5375025,117740.0,117730.0,0.91022847]
[1752630756250,0.5375025,117740.0,117730.0,0.62466401]
[1752630756753,0.555117,117740.0,117730.0,0.91022847]
[1752630757054,0.6608716,117740.0,117730.0,0.91122847]
[1752630757249,0.6668716,117740.0,117730.0,0.62566401]
[1752630758049,0.6608716,117740.0,117730.0,0.62466401]
[1752630758351,0.6618716,117740.0,117730.0,0.62566401]
[1752630759249,0.556117,117740.0,117730.0,0.62566401]
[1752630760760,0.556117,117740.0,117730.0,0.03790401]
[1752630760950,0.6618716,117740.0,117730.0,0.03790401]
[1752630762650,0.556117,117740.0,117730.0,0.32346847]
[1752630763554,0.3862745,117740.0,117730.0,0.32346847]
[1752630764055,0.556117,117740.0,117730.0,0.32346847]
[1752630771655,0.3862745,117740.0,117730.0,0.45642136]
[1752630771855,0.53756571,117740.0,117730.0,0.32346847]
[1752630772652,0.3862745,117740.0,117730.0,0.32346847]
[1752630776360,0.49226335,117740.0,117730.0,0.32346847]
[1752630777159,0.49226335,117740.0,117730.0,0.28656446]
[1752630777364,0.3862745,117740.0,117730.0,0.32346847]
[1752630779563,0.3862745,117740.0,117730.0,0.30412533]
[1752630779764,0.5561172,117740.0,117730.0,0.30412533]
[1752630780163,0.3862745,117740.0,117730.0,0.30412533]
[1752630781666,0.53756571,117740.0,117730.0,0.30412533]
[1752630783065,0.53756571,117740.0,117730.0,0.47398243]
[1752630783970,0.3862745,117740.0,117730.0,0.47398243]
[1752630785362,0.5561172,117740.0,117730.0,0.30412533]
[1752630785568,0.00703,117730.0,117710.0,0.9204841]
[1752630785770,0.00703,117730.0,117720.0,0.87336446]
[1752630785966,0.00703,117730.0,117720.0,0.89192533]
[1752630787064,0.01403,117730.0,117720.0,0.89192533]
[1752630788075,0.01403,117730.0,117720.0,0.87258221]
[1752630788474,0.01503,117730.0,117720.0,0.87358221]
[1752630789169,0.01503,117730.0,117720.0,1.04345371]
[1752630792775,0.01259,117730.0,117720.0,1.04345371]
[1752630793164,0.01259,117730.0,117720.0,1.32901817]
[1752630793480,0.11877928,117730.0,117720.0,1.32901817]
[1752630793668,0.11418928,117730.0,117720.0,1.32901817]
[1752630795572,0.008,117730.0,117720.0,1.32901817]
[1752630796476,0.01503,117730.0,117720.0,1.06427683]
[1752630796669,0.12121928,117730.0,117720.0,1.06427683]
[1752630796871,0.29107638,117730.0,117720.0,0.30512533]
[1752630797070,0.29107638,117730.0,117720.0,0.89464533]
[1752630797677,0.12121928,117730.0,117720.0,1.06451683]
[1752630800277,0.12121928,117730.0,117720.0,0.18943237]
[1752630800472,0.12121928,117730.0,117720.0,0.89444533]
[1752630800780,0.01503,117730.0,117720.0,1.06435683]
[1752630800975,0.16632121,117730.0,117720.0,1.06435683]
[1752630802977,0.15929121,117730.0,117720.0,1.34992129]
[1752630803180,0.23509044,117730.0,117720.0,1.12136129]
[1752630803373,0.008,117730.0,117720.0,1.71100129]
[1752630803679,0.08379923,117730.0,117720.0,1.71100129]
[1752630803876,0.008,117730.0,117720.0,1.12136129]
[1752630804078,0.26553135,117750.0,117740.0,0.1698426]
[1752630804278,0.26553135,117750.0,117740.0,1.44360357]
[1752630804279,0.06849652,117750.0,117740.0,1.44360357]
[1752630804578,0.15588121,117760.0,117750.0,0.1698282]
[1752630804780,0.15588121,117760.0,117750.0,0.45461391]
[1752630805181,0.17307501,117760.0,117750.0,0.45461391]
[1752630805684,0.17307501,117760.0,117750.0,0.81541391]
[1752630806572,0.0217838,117760.0,117750.0,0.81541391]
[1752630806780,0.08979746,117760.0,117750.0,0.81841391]
[1752630807084,0.00559,117760.0,117750.0,0.81841391]
[1752630807284,0.00559,117760.0,117750.0,0.66792533]
[1752630807783,0.00559,117760.0,117750.0,0.83775343]
[1752630809082,0.00459,117760.0,117750.0,0.83475343]
[1752630809282,0.00659,117760.0,117750.0,0.84475343]
[1752630809484,0.02210894,117760.0,117750.0,0.84475343]
[1752630809686,0.00659,117760.0,117750.0,0.84475343]
[1752630810184,0.07337555,117760.0,117750.0,0.84475343]
[1752630811985,0.1791877,117760.0,117750.0,0.84475343]
[1752630812686,0.1791877,117760.0,117750.0,1.13031789]
[1752630812687,0.1745977,117760.0,117750.0,1.13031789]
[1752630814189,0.1745977,117760.0,117750.0,0.84475343]
[1752630815787,0.06878555,117760.0,117750.0,0.84475343]
[1752630816082,0.1745977,117760.0,117750.0,0.84475343]
[1752630816290,0.32588891,117760.0,117750.0,0.84475343]
[1752630816489,0.22007676,117760.0,117750.0,0.84475343]
[1752630817789,0.22007676,117760.0,117750.0,1.14245343]
[1752630817992,0.22007676,117760.0,117750.0,1.50325343]
[1752630821193,0.06878555,117760.0,117750.0,1.50325343]
[1752630823893,0.07342555,117760.0,117750.0,1.50325343]
[1752630824098,0.07577555,117760.0,117750.0,1.50325343]
[1752630824298,0.07577555,117760.0,117750.0,1.48469256]
[1752630824493,0.07577555,117760.0,117750.0,1.50325343]
[1752630824698,0.07577555,117760.0,117750.0,2.09241343]
[1752630825200,0.07577555,117760.0,117750.0,1.37081353]
[1752630825400,0.07342555,117760.0,117750.0,1.73161353]
[1752630825902,0.22471676,117760.0,117750.0,1.73161353]
[1752630826101,0.22706676,117760.0,117750.0,1.71305266]
[1752630826293,0.33282251,117760.0,117750.0,1.73161353]
[1752630826694,0.1815313,117760.0,117750.0,1.73161353]
[1752630827203,0.1815313,117760.0,117750.0,1.73133353]